fUST/lending_fUST_20250411
["ID","MTS","AMOUNT","RATE_DAILY","PERIOD"]
[357691188,1744332718196,-625.16,0.00021369,2]
[357691189,1744332718206,-500.0,0.00021369,2]
[357691190,1744332718216,-500.0,0.00021369,2]
[357691191,1744332718225,-686.77,0.00021369,2]
[357691192,1744332718235,-2680.42,0.00021369,2]
[357691193,1744332718245,-500.0,0.00021369,2]
[357691194,1744332718255,-500.0,0.00021369,2]
[357691195,1744332718264,-596.86,0.00021369,2]
[357691196,1744332718274,-2411.42,0.00021369,2]
[357691197,1744332718283,-500.0,0.00021369,2]
[357691198,1744332718293,-687.7,0.00021369,2]
[357691199,1744332718307,-500.0,0.00021369,2]
[357691200,1744332718317,-902.62,0.00021369,2]
[357691201,1744332718326,-2689.13,0.00021369,2]
[357691202,1744332718335,-785.7,0.00021369,2]
[357691203,1744332718344,-500.0,0.00021369,2]
[357691204,1744332718354,-5675.99,0.00021369,2]
[357691205,1744332718365,-870.2,0.00021369,2]
[357691206,1744332718375,-597.88,0.00021369,2]
[357691207,1744332718385,-626.25,0.00021369,2]
[357691208,1744332718395,-500.0,0.00021369,2]
[357691209,1744332718406,-892.18,0.00021369,2]
[357691210,1744332718415,-682.01,0.00021369,2]
[357691211,1744332718425,-500.0,0.00021369,2]
[357691212,1744332718434,-500.0,0.00021369,2]
[357691213,1744332718444,-2060.38,0.00021369,2]
[357691214,1744332718454,-605.05,0.00021369,2]
[357691215,1744332718463,-2354.26,0.00021369,2]
[357691216,1744332718472,-622.34,0.00021369,2]
[357691217,1744332718482,-1017.63,0.00021369,2]
[357691218,1744332718491,-938.97,0.00021369,2]
[357691219,1744332718502,-658.07,0.00021369,2]
[357691220,1744332718511,-421.90241034,0.00021369,2]
[357691221,1744332718520,-500.0,0.00021369,2]
[357691222,1744332718530,-1373.8,0.00021369,2]
[357691223,1744332718539,-753.79,0.00021369,2]
[357691224,1744332718550,-1265.29,0.00021369,2]
[357691225,1744332718560,-820.1,0.00021369,2]
[357691226,1744332718570,-584.98,0.00021369,2]
[357691227,1744332718580,-1800.19,0.00021369,2]
[357691228,1744332718589,-508.82,0.00021369,2]
[357691229,1744332718600,-500.0,0.00021369,2]
[357691230,1744332718610,-965.93,0.00021369,2]
[357691231,1744332718620,-622.37,0.00021369,2]
[357691232,1744332718629,-964.69,0.00021369,2]
[357691233,1744332718639,-1069.32,0.00021369,2]
[357691234,1744332718649,-1504.79,0.00021369,2]
[357691235,1744332718658,-626.21,0.00021369,2]
[357691236,1744332718672,-522.1,0.00021369,2]
[357691237,1744332718685,-500.0,0.00021369,2]
[357691238,1744332718696,-500.0,0.00021369,2]
[357691239,1744332718707,-519.3,0.00021369,2]
[357691240,1744332718717,-1328.83,0.00021369,2]
[357691241,1744332718726,-920.39,0.00021369,2]
[357691242,1744332718735,-1101.36,0.00021369,2]
[357691243,1744332718747,-500.0,0.00021369,2]
[357691244,1744332718757,-818.53,0.00021369,2]
[357691245,1744332718766,-856.67,0.00021369,2]
[357691246,1744332718775,-743.65,0.00021369,2]
[357691247,1744332718785,-1156.1,0.00021369,2]
[357691248,1744332718795,-678.36,0.00021369,2]
[357691249,1744332718808,-1705.48,0.00021369,2]
[357691250,1744332718818,-716.68,0.00021369,2]
[357691251,1744332718828,-1296.89,0.00021369,2]
[357691252,1744332718837,-500.0,0.00021369,2]
[357691253,1744332718848,-790.9,0.00021369,2]
[357691254,1744332718859,-704.94,0.00021369,2]
[357691255,1744332718869,-567.7,0.00021369,2]
[357691256,1744332718880,-558.42,0.00021369,2]
[357691257,1744332718890,-500.0,0.00021369,2]
[357691258,1744332718900,-1188.07,0.00021369,2]
[357691259,1744332718910,-714.62,0.00021369,2]
[357691260,1744332718920,-3771.47,0.00021369,2]
[357691261,1744332718930,-570.24,0.00021369,2]
[357691262,1744332718940,-1402.01,0.00021369,2]
[357691263,1744332718950,-500.0,0.00021369,2]
[357691264,1744332718960,-1107.44,0.00021369,2]
[357691265,1744332718971,-726.32,0.00021369,2]
[357691266,1744332718982,-1438.7,0.00021369,2]
[357691267,1744332718993,-500.0,0.00021369,2]
[357691268,1744332719004,-934.2,0.00021369,2]
[357691269,1744332719014,-870.5,0.00021369,2]
[357691270,1744332719025,-1864.53,0.00021369,2]
[357691271,1744332719035,-537.53,0.00021369,2]
[357691272,1744332719045,-998.15,0.00021369,2]
[357691273,1744332719059,-1383.56,0.00021369,2]
[357691274,1744332719069,-3529.69,0.00021369,2]
[357691275,1744332719080,-3044.77,0.00021369,2]
[357691276,1744332719090,-2146.75,0.00021369,2]
[357691277,1744332719100,-1512.13,0.00021369,2]
[357691278,1744332719111,-14936.72,0.00021369,2]
[357691279,1744332719124,-1335.19,0.00021369,2]
[357691280,1744332719133,-1204.17,0.00021369,2]
[357691281,1744332719143,-1290.13,0.00021369,2]
[357691282,1744332719153,-2211.01,0.00021369,2]
[357691283,1744332719163,-782.17,0.00021369,2]
[357691284,1744332719173,-1521.17,0.00021369,2]
[357691285,1744332719183,-3640.91,0.00021369,2]
[357691286,1744332719192,-708.03,0.00021369,2]
[357691287,1744332719202,-1604.56,0.00021369,2]
[357691288,1744332719211,-1186.97,0.00021369,2]
[357691289,1744332719222,-7810.81,0.00021369,2]
[357691290,1744332719231,-640.07,0.00021369,2]
[357691291,1744332719241,-614.86,0.00021369,2]
[357691292,1744332719251,-13554.02,0.00021369,2]
[357691293,1744332719261,-769.63,0.00021369,2]
[357691294,1744332719271,-5806.94,0.00021369,2]
[357691295,1744332719281,-555.86,0.00021369,2]
[357691296,1744332719291,-1492.5,0.00021369,2]
[357691297,1744332719303,-726.32,0.00021369,2]
[357691298,1744332719312,-659.35,0.00021369,2]
[357691299,1744332719322,-688.0,0.00021369,2]
[357691300,1744332719332,-1067.15,0.00021369,2]
[357691301,1744332719341,-2931.48,0.00021369,2]
[357691302,1744332719351,-1735.47,0.00021369,2]
[357691303,1744332719361,-1109.5,0.00021369,2]
[357691304,1744332719371,-711.11,0.00021369,2]
[357691305,1744332719380,-13734.21,0.00021369,2]
[357691306,1744332719391,-2323.29,0.00021369,2]
[357691307,1744332719401,-1042.58,0.00021369,2]
[357691308,1744332719411,-728.17,0.00021369,2]
[357691309,1744332719421,-569.2,0.00021369,2]
[357691310,1744332719430,-500.0,0.00021369,2]
[357691311,1744332719439,-4218.44,0.00021369,2]
[357691312,1744332719449,-848.49,0.00021369,2]
[357691313,1744332719459,-2639.23,0.00021369,2]
[357691314,1744332719470,-2518.79,0.00021369,2]
[357691315,1744332719480,-600.79958569,0.00021369,2]
[357691316,1744332719490,-2840.99,0.00021369,2]
[357691317,1744332719500,-630.78,0.00021369,2]
[357691318,1744332719509,-500.0,0.00021369,2]
[357691319,1744332719518,-538.5,0.00021369,2]
[357691320,1744332719528,-1220.83,0.00021369,2]
[357691321,1744332719538,-5035.72,0.00021369,2]
[357691322,1744332719547,-3916.52,0.00021369,2]
[357691323,1744332719559,-508.34,0.00021369,2]
[357691324,1744332719570,-1000.19,0.00021369,2]
[357691325,1744332719580,-884.76,0.00021369,2]
[357691326,1744332719589,-500.0,0.00021369,2]
[357691327,1744332719599,-4175.53,0.00021369,2]
[357691328,1744332719609,-1347.73,0.00021369,2]
[357691329,1744332719619,-2772.56,0.00021369,2]
[357691330,1744332719630,-792.4,0.00021369,2]
[357691331,1744332719640,-856.93,0.00021369,2]
[357691332,1744332719649,-740.48,0.00021369,2]
[357691333,1744332719659,-500.0,0.00021369,2]
[357691334,1744332719672,-781.83,0.00021369,2]
[357691335,1744332719682,-601.25,0.00021369,2]
[357691336,1744332719692,-9626.05,0.00021369,2]
[357691337,1744332719702,-966.14,0.00021369,2]
[357691338,1744332719713,-1947.04,0.00021369,2]
[357691339,1744332719723,-500.0,0.00021369,2]
[357691340,1744332719732,-4677.94,0.00021369,2]
[357691341,1744332719744,-527.85,0.00021369,2]
[357691342,1744332719754,-714.13,0.00021369,2]
[357691343,1744332719765,-756.51,0.00021369,2]
[357691344,1744332719775,-6483.88,0.00021369,2]
[357691345,1744332719784,-808.09,0.00021369,2]
[357691346,1744332719794,-615.42,0.00021369,2]
[357691347,1744332719806,-500.0,0.00021369,2]
[357691348,1744332719816,-6484.18,0.00021369,2]
[357691349,1744332719825,-1945.56,0.00021369,2]
[357691350,1744332719835,-524.93,0.00021369,2]
[357691351,1744332719846,-1064.33,0.00021369,2]
[357691352,1744332719855,-585.82,0.00021369,2]
[357691353,1744332719864,-1433.89,0.00021369,2]
[357691354,1744332719874,-917.83,0.00021369,2]
[357691355,1744332719883,-500.0,0.00021369,2]
[357691356,1744332719893,-668.16,0.00021369,2]
[357691357,1744332719903,-1100.79,0.00021369,2]
[357691358,1744332719913,-540.97,0.00021369,2]
[357691359,1744332719922,-4679.43,0.00021369,2]
[357691360,1744332719932,-947.12,0.00021369,2]
[357691361,1744332719941,-1008.44,0.00021369,2]
[357691362,1744332719951,-500.0,0.00021369,2]
[357691363,1744332719961,-4183.52,0.00021369,2]
[357691364,1744332719971,-1151.7,0.00021369,2]
[357691365,1744332719980,-759.31,0.00021369,2]
[357691366,1744332719989,-500.0,0.00021369,2]
[357691367,1744332719999,-500.0,0.00021369,2]
[357691368,1744332720008,-626.77,0.00021369,2]
[357691369,1744332720018,-942.33,0.00021369,2]
[357691370,1744332720027,-2564.86,0.00021369,2]
[357691371,1744332720038,-1699.0,0.00021369,2]
[357691372,1744332720047,-731.4,0.00021369,2]
[357691373,1744332720058,-500.0,0.00021369,2]
[357691374,1744332720067,-570.97,0.00021369,2]
[357691375,1744332720076,-3260.9,0.00021369,2]
[357691376,1744332720086,-754.83,0.00021369,2]
[357691377,1744332720095,-500.9,0.00021369,2]
[357691378,1744332720105,-500.0,0.00021369,2]
[357691379,1744332720114,-18184.96,0.00021369,2]
[357691380,1744332720124,-500.0,0.00021369,2]
[357691381,1744332720133,-506.91,0.00021369,2]
[357691382,1744332720142,-740.5,0.00021369,2]
[357691383,1744332720152,-500.0,0.00021369,2]
[357691384,1744332720161,-559.11,0.00021369,2]
[357691385,1744332720171,-1994.39,0.00021369,2]
[357691386,1744332720181,-6436.24,0.00021369,2]
[357691387,1744332720190,-911.05,0.00021369,2]
[357691388,1744332720200,-1272.17,0.00021369,2]
[357691389,1744332720219,-1574.76,0.00021369,2]
[357691390,1744332720235,-976.71,0.00021369,2]
[357691391,1744332720246,-1474.54,0.00021369,2]
[357691392,1744332720256,-650.21,0.00021369,2]
[357691393,1744332720266,-500.0,0.00021369,2]
[357691394,1744332720276,-2422.75,0.00021369,2]
[357691395,1744332720285,-3000.0,0.0002137,2]
[357691396,1744332720295,-3000.0,0.0002138,2]
[357691397,1744332720306,-3000.0,0.0002139,2]
[357691398,1744332720316,-3000.0,0.000214,2]
[357691399,1744332720326,-5000.0,0.00021404,2]
[357691400,1744332720335,-3000.0,0.0002141,2]
[357691401,1744332720345,-3000.0,0.0002142,2]
[357691402,1744332720354,-5825.462231,0.0002143,2]
[357691403,1744332720364,-1000.0,0.00021439,101]
[357691404,1744332720374,-1616.49634174,0.00021543,2]
[357691405,1744332720383,-156.7325953,0.00021569,2]
[357691406,1744332720394,-213.4393785,0.00021569,2]
[357691407,1744332720403,-588.1276356,0.00021569,2]
[357691408,1744332720413,-213.4393785,0.00021569,2]
[357691409,1744332720423,-156.7325953,0.00021569,2]
[357691410,1744332720433,-564.5161105,0.00021569,2]
[357691411,1744332720443,-213.4393785,0.00021569,2]
[357691412,1744332720453,-156.7325953,0.00021569,2]
[357691413,1744332720464,-564.5161105,0.00021569,2]
[357691414,1744332720474,-213.4393785,0.00021569,2]
[357691415,1744332720487,-156.7325953,0.00021569,2]
[357691416,1744332720498,-564.5161105,0.00021569,2]
[357691417,1744332720509,-156.7325953,0.00021569,2]
[357691418,1744332720519,-213.4393785,0.00021569,2]
[357691419,1744332720529,-564.5161105,0.00021569,2]
[357691420,1744332720539,-11630.24417326,0.0002159,3]
[357691421,1744332720549,-800.0,0.000216,2]
[357691422,1744332720565,-160.0,0.00021621,2]
[357691423,1744332720576,-1132.93,0.00021643,2]
[357691424,1744332720589,-3699.75,0.00021643,2]
[357691425,1744332720600,-865.73,0.00021643,2]
[357691426,1744332720611,-1251.82,0.00021643,2]
[357691427,1744332720621,-599.27,0.00021643,2]
[357691428,1744332720631,-570.69,0.00021643,2]
[357691429,1744332720642,-822.09,0.00021643,2]
[357691430,1744332720652,-500.0,0.00021643,2]
[357691431,1744332720665,-780.46,0.00021643,2]
[357691432,1744332720677,-911.25,0.00021643,2]
[357691433,1744332720688,-628.70292557,0.00021643,2]
[357691434,1744332720698,-500.0,0.00021643,2]
[357691435,1744332720709,-1232.99,0.00021643,2]
[357691436,1744332720719,-588.16,0.00021643,2]
[357691437,1744332720730,-500.0,0.00021643,2]
[357691438,1744332720740,-507.17,0.00021643,2]
[357691439,1744332720750,-500.0,0.00021643,2]
[357691440,1744332720760,-1079.66,0.00021643,2]
[357691441,1744332720770,-1430.67,0.00021643,2]
[357691442,1744332720779,-1119.95,0.00021643,2]
[357691443,1744332720789,-625.16,0.00021643,2]
[357691444,1744332720799,-500.0,0.00021643,2]
[357691445,1744332720813,-500.0,0.00021643,2]
[357691446,1744332720822,-686.77,0.00021643,2]
[357691447,1744332720832,-2680.42,0.00021643,2]
[357691448,1744332720842,-500.0,0.00021643,2]
[357691449,1744332720858,-500.0,0.00021643,2]
[357691450,1744332720867,-596.86,0.00021643,2]
[357691451,1744332720877,-2411.42,0.00021643,2]
[357691452,1744332720887,-500.0,0.00021643,2]
[357691453,1744332720896,-687.7,0.00021643,2]
[357691454,1744332720906,-593.64731566,0.00021643,2]
[357691455,1744332720916,-902.62,0.00021643,2]
[357691456,1744332720926,-2689.13,0.00021643,2]
[357691457,1744332720936,-785.7,0.00021643,2]
[357691458,1744332720946,-500.0,0.00021643,2]
[357691459,1744332720956,-5675.99,0.00021643,2]
[357691460,1744332720966,-870.2,0.00021643,2]
[357691461,1744332720976,-597.88,0.00021643,2]
[357691462,1744332720986,-626.25,0.00021643,2]
[357691463,1744332720997,-261.56198443,0.00021643,2]
[357691464,1744332721007,-892.18,0.00021643,2]
[357691465,1744332721017,-682.01,0.00021643,2]
[357691466,1744332721028,-292.08457388,0.00021643,2]
[357691467,1744332721038,-500.0,0.00021643,2]
[357691468,1744332721048,-2060.38,0.00021643,2]
[357691469,1744332721062,-605.05,0.00021643,2]
[357691470,1744332721073,-2354.26,0.00021643,2]
[357691471,1744332721083,-622.34,0.00021643,2]
[357691472,1744332721094,-1017.63,0.00021643,2]
[357691473,1744332721104,-938.97,0.00021643,2]
[357691474,1744332721114,-658.07,0.00021643,2]
[357691475,1744332721124,-648.13310388,0.00021643,2]
[357691476,1744332721135,-1373.8,0.00021643,2]
[357691477,1744332721145,-753.79,0.00021643,2]
[357691478,1744332721156,-1265.29,0.00021643,2]
[357691479,1744332721166,-820.1,0.00021643,2]
[357691480,1744332721177,-584.98,0.00021643,2]
[357691481,1744332721187,-1800.19,0.00021643,2]
[357691482,1744332721198,-508.82,0.00021643,2]
[357691483,1744332721208,-500.0,0.00021643,2]
[357691484,1744332721218,-965.93,0.00021643,2]
[357691485,1744332721229,-622.37,0.00021643,2]
[357691486,1744332721240,-964.69,0.00021643,2]
[357691487,1744332721250,-1069.32,0.00021643,2]
[357691488,1744332721261,-1504.79,0.00021643,2]
[357691489,1744332721271,-626.21,0.00021643,2]
[357691490,1744332721282,-522.1,0.00021643,2]
[357691491,1744332721291,-167.45489606,0.00021643,2]
[357691492,1744332721301,-500.0,0.00021643,2]
[357691493,1744332721316,-519.3,0.00021643,2]
[357691494,1744332721326,-1328.83,0.00021643,2]
[357691495,1744332721337,-920.39,0.00021643,2]
[357691496,1744332721348,-1101.36,0.00021643,2]
[357691497,1744332721359,-500.0,0.00021643,2]
[357691498,1744332721369,-818.53,0.00021643,2]
[357691499,1744332721380,-856.67,0.00021643,2]
[357691500,1744332721390,-743.65,0.00021643,2]
[357691501,1744332721400,-1156.1,0.00021643,2]
[357691502,1744332721411,-678.36,0.00021643,2]
[357691503,1744332721421,-1705.48,0.00021643,2]
[357691504,1744332721432,-716.68,0.00021643,2]
[357691505,1744332721442,-1296.89,0.00021643,2]
[357691506,1744332721453,-500.0,0.00021643,2]
[357691507,1744332721464,-790.9,0.00021643,2]
[357691508,1744332721477,-704.94,0.00021643,2]
[357691509,1744332721487,-567.7,0.00021643,2]
[357691510,1744332721498,-558.42,0.00021643,2]
[357691511,1744332721509,-500.0,0.00021643,2]
[357691512,1744332721520,-1188.07,0.00021643,2]
[357691513,1744332721531,-714.62,0.00021643,2]
[357691514,1744332721541,-3771.47,0.00021643,2]
[357691515,1744332721552,-570.24,0.00021643,2]
[357691516,1744332721565,-1402.01,0.00021643,2]
[357691517,1744332721576,-500.0,0.00021643,2]
[357691518,1744332721587,-1107.44,0.00021643,2]
[357691519,1744332721598,-726.32,0.00021643,2]
[357691520,1744332721609,-1438.7,0.00021643,2]
[357691521,1744332721622,-500.0,0.00021643,2]
[357691522,1744332721634,-934.2,0.00021643,2]
[357691523,1744332721646,-870.5,0.00021643,2]
[357691524,1744332721657,-1864.53,0.00021643,2]
[357691525,1744332721669,-537.53,0.00021643,2]
[357691526,1744332721680,-998.15,0.00021643,2]
[357691527,1744332721691,-3529.69,0.00021643,2]
[357691528,1744332721703,-1383.56,0.00021643,2]
[357691529,1744332721716,-3044.77,0.00021643,2]
[357691530,1744332721728,-2146.75,0.00021643,2]
[357691531,1744332721739,-1512.13,0.00021643,2]
[357691532,1744332721752,-14936.72,0.00021643,2]
[357691533,1744332721763,-1335.19,0.00021643,2]
[357691534,1744332721774,-1204.17,0.00021643,2]
[357691535,1744332721786,-1290.13,0.00021643,2]
[357691536,1744332721798,-2211.01,0.00021643,2]
[357691537,1744332721812,-782.17,0.00021643,2]
[357691538,1744332721823,-1521.17,0.00021643,2]
[357691539,1744332721834,-3640.91,0.00021643,2]
[357691540,1744332721845,-708.03,0.00021643,2]
[357691541,1744332721857,-1604.56,0.00021643,2]
[357691542,1744332721867,-1186.97,0.00021643,2]
[357691543,1744332721879,-7810.81,0.00021643,2]
[357691544,1744332721890,-640.07,0.00021643,2]
[357691545,1744332721901,-614.86,0.00021643,2]
[357691546,1744332721913,-13554.02,0.00021643,2]
[357691547,1744332721923,-769.63,0.00021643,2]
[357691548,1744332721935,-5806.94,0.00021643,2]
[357691549,1744332721946,-555.86,0.00021643,2]
[357691550,1744332721958,-1492.5,0.00021643,2]
[357691551,1744332721969,-726.32,0.00021643,2]
[357691552,1744332721980,-659.35,0.00021643,2]
[357691553,1744332721991,-688.0,0.00021643,2]
[357691554,1744332722002,-1067.15,0.00021643,2]
[357691555,1744332722014,-2931.48,0.00021643,2]
[357691556,1744332722025,-1735.47,0.00021643,2]
[357691557,1744332722036,-1109.5,0.00021643,2]
[357691558,1744332722047,-711.11,0.00021643,2]
[357691559,1744332722061,-13734.21,0.00021643,2]
[357691560,1744332722073,-2323.29,0.00021643,2]
[357691561,1744332722084,-1042.58,0.00021643,2]
[357691562,1744332722095,-728.17,0.00021643,2]
[357691563,1744332722107,-569.2,0.00021643,2]
[357691564,1744332722118,-500.0,0.00021643,2]
[357691565,1744332722129,-4218.44,0.00021643,2]
[357691566,1744332722140,-848.49,0.00021643,2]
[357691567,1744332722151,-2639.23,0.00021643,2]
[357691568,1744332722162,-2518.79,0.00021643,2]
[357691569,1744332722173,-2840.99,0.00021643,2]
[357691570,1744332722183,-630.78,0.00021643,2]
[357691571,1744332722195,-500.0,0.00021643,2]
[357691572,1744332722206,-1220.83,0.00021643,2]
[357691573,1744332722218,-5035.72,0.00021643,2]
[357691574,1744332722229,-3916.52,0.00021643,2]
[357691575,1744332722239,-508.34,0.00021643,2]
[357691576,1744332722251,-1000.19,0.00021643,2]
[357691577,1744332722262,-884.76,0.00021643,2]
[357691578,1744332722273,-644.53,0.00021643,2]
[357691579,1744332722284,-1347.73,0.00021643,2]
[357691580,1744332722295,-4175.53,0.00021643,2]
[357691581,1744332722307,-2772.56,0.00021643,2]
[357691582,1744332722318,-792.4,0.00021643,2]
[357691583,1744332722329,-856.93,0.00021643,2]
[357691584,1744332722340,-740.48,0.00021643,2]
[357691585,1744332722350,-500.0,0.00021643,2]
[357691586,1744332722372,-781.83,0.00021643,2]
[357691587,1744332722387,-601.25,0.00021643,2]
[357691588,1744332722399,-9626.05,0.00021643,2]
[357691589,1744332722411,-966.14,0.00021643,2]
[357691590,1744332722423,-1947.04,0.00021643,2]
[357691591,1744332722435,-611.16395147,0.00021643,2]
[357691592,1744332722447,-4677.94,0.00021643,2]
[357691593,1744332722458,-527.85,0.00021643,2]
[357691594,1744332722470,-714.13,0.00021643,2]
[357691595,1744332722482,-756.51,0.00021643,2]
[357691596,1744332722494,-6483.88,0.00021643,2]
[357691597,1744332722507,-808.09,0.00021643,2]
[357691598,1744332722519,-615.42,0.00021643,2]
[357691599,1744332722531,-500.0,0.00021643,2]
[357691600,1744332722544,-6484.18,0.00021643,2]
[357691601,1744332722558,-1945.56,0.00021643,2]
[357691602,1744332722570,-524.93,0.00021643,2]
[357691603,1744332722583,-1064.33,0.00021643,2]
[357691604,1744332722876,-585.82,0.00021643,2]
[357691605,1744332722887,-1433.89,0.00021643,2]
[357691606,1744332722898,-917.83,0.00021643,2]
[357691607,1744332722908,-500.0,0.00021643,2]
[357691608,1744332722918,-668.16,0.00021643,2]
[357691609,1744332722928,-1100.79,0.00021643,2]
[357691610,1744332722937,-540.97,0.00021643,2]
[357691611,1744332722947,-4679.43,0.00021643,2]
[357691612,1744332722958,-947.12,0.00021643,2]
[357691613,1744332722968,-1008.44,0.00021643,2]
[357691614,1744332722978,-374.23703693,0.00021643,2]
[357691615,1744332722988,-4183.52,0.00021643,2]
[357691616,1744332722997,-1151.7,0.00021643,2]
[357691617,1744332723007,-759.31,0.00021643,2]
[357691618,1744332723017,-500.0,0.00021643,2]
[357691619,1744332723027,-500.0,0.00021643,2]
[357691620,1744332723037,-626.77,0.00021643,2]
[357691621,1744332723048,-942.33,0.00021643,2]
[357691622,1744332723058,-2564.86,0.00021643,2]
[357691623,1744332723068,-1699.0,0.00021643,2]
[357691624,1744332723079,-731.4,0.00021643,2]
[357691625,1744332723089,-342.08989006,0.00021643,2]
[357691626,1744332723099,-570.97,0.00021643,2]
[357691627,1744332723109,-3260.9,0.00021643,2]
[357691628,1744332723119,-754.83,0.00021643,2]
[357691629,1744332723131,-500.9,0.00021643,2]
[357691630,1744332723142,-500.0,0.00021643,2]
[357691631,1744332723153,-18184.96,0.00021643,2]
[357691632,1744332723163,-252.33165516,0.00021643,2]
[357691633,1744332723175,-506.91,0.00021643,2]
[357691634,1744332723185,-740.5,0.00021643,2]
[357691635,1744332723195,-500.0,0.00021643,2]
[357691636,1744332723205,-559.11,0.00021643,2]
[357691637,1744332723215,-1994.39,0.00021643,2]
[357691638,1744332723225,-6436.24,0.00021643,2]
[357691639,1744332723235,-911.05,0.00021643,2]
[357691640,1744332723245,-1272.17,0.00021643,2]
[357691641,1744332723255,-1574.76,0.00021643,2]
[357691642,1744332723265,-1474.54,0.00021643,2]
[357691643,1744332723276,-650.21,0.00021643,2]
[357691644,1744332723286,-295.7697255,0.00021643,2]
[357691645,1744332723295,-2422.75,0.00021643,2]
[357691646,1744332723305,-160.0,0.00021667,2]
[357691647,1744332723316,-160.0,0.00021667,2]
[357691648,1744332723327,-160.0,0.00021713,3]
[357691649,1744332723337,-160.0,0.00021747,4]
[357691650,1744332723347,-160.0,0.0002178,5]
[357691651,1744332723358,-160.0,0.00021814,6]
[357691652,1744332723368,-160.0,0.00021848,7]
[357691653,1744332723378,-11630.24417326,0.00021866,3]
[357691654,1744332723389,-160.0,0.00021882,8]
[357691655,1744332723399,-231.28369723,0.00021904,2]
[357691656,1744332723410,-151.0,0.00021904,2]
[357691657,1744332723420,-160.0,0.00021915,9]
[357691658,1744332723431,-1132.93,0.00021917,2]
[357691659,1744332723441,-3699.75,0.00021917,2]
[357691660,1744332723451,-865.73,0.00021917,2]
[357691661,1744332723461,-1251.82,0.00021917,2]
[357691662,1744332723471,-599.27,0.00021917,2]
[357691663,1744332723481,-570.69,0.00021917,2]
[357691664,1744332723491,-822.09,0.00021917,2]
[357691665,1744332723502,-448.5618802,0.00021917,2]
[357691666,1744332723513,-780.46,0.00021917,2]
[357691667,1744332723523,-911.25,0.00021917,2]
[357691668,1744332723532,-500.0,0.00021917,2]
[357691669,1744332723542,-1232.99,0.00021917,2]
[357691670,1744332723552,-588.16,0.00021917,2]
[357691671,1744332723563,-500.0,0.00021917,2]
[357691672,1744332723573,-507.17,0.00021917,2]
[357691673,1744332723583,-462.37831978,0.00021917,2]
[357691674,1744332723594,-1079.66,0.00021917,2]
[357691675,1744332723604,-1430.67,0.00021917,2]
[357691676,1744332723615,-1119.95,0.00021917,2]
[357691677,1744332723625,-625.16,0.00021917,2]
[357691678,1744332723636,-500.0,0.00021917,2]
[357691679,1744332723647,-312.41992962,0.00021917,2]
[357691680,1744332723658,-686.77,0.00021917,2]
[357691681,1744332723670,-2680.42,0.00021917,2]
[357691682,1744332723681,-200.88589295,0.00021917,2]
[357691683,1744332723691,-500.0,0.00021917,2]
[357691684,1744332723702,-596.86,0.00021917,2]
[357691685,1744332723714,-2411.42,0.00021917,2]
[357691686,1744332723725,-484.94023957,0.00021917,2]
[357691687,1744332723736,-687.7,0.00021917,2]